[Event "Titled Tuesday Blitz October 31 Early 2023"]
[White "Ivic, Velimir"]
[Black "Csonka, Balazs"]
[WhiteFideId "950122"]
[BlackFideId "742910"]
[WhiteElo "2855"]
[BlackElo "2730"]
[Result "0-1"]
[Round "7"]
[TimeControl "180+1"]
[Date "2023.10.31"]
[WhiteClock "0:00:12"]
[BlackClock "0:00:05"]
[Board "18"]

1. e4 {[%clk 0:03:00]}  c6 {[%clk 0:02:59]} 2. Nc3 {[%clk 0:02:54]}  d5 {[%clk 0:02:59]} 3. Nf3 {[%clk 0:02:54]}  Bg4 {[%clk 0:02:55]} 4. d4 {[%clk 0:02:46]}  e6 {[%clk 0:02:52]} 5. Be2 {[%clk 0:02:40]}  Nf6 {[%clk 0:02:49]} 6. e5 {[%clk 0:02:40]}  Nfd7 {[%clk 0:02:49]} 7. O-O {[%clk 0:02:38]}  c5 {[%clk 0:02:45]} 8. Bg5 {[%clk 0:02:38]}  Qb6 {[%clk 0:02:34]} 9. Na4 {[%clk 0:02:32]}  Qc6 {[%clk 0:02:24]} 10. c3 {[%clk 0:02:30]}  Bxf3 {[%clk 0:02:02]} 11. Bxf3 {[%clk 0:02:26]}  b5 {[%clk 0:02:01]} 12. Nxc5 {[%clk 0:02:26]}  Nxc5 {[%clk 0:01:51]} 13. dxc5 {[%clk 0:02:27]}  Bxc5 {[%clk 0:01:51]} 14. a4 {[%clk 0:02:22]}  Nd7 {[%clk 0:01:45]} 15. Re1 {[%clk 0:02:13]}  O-O {[%clk 0:01:36]} 16. axb5 {[%clk 0:02:04]}  Qxb5 {[%clk 0:01:37]} 17. b4 {[%clk 0:02:04]}  Bb6 {[%clk 0:01:35]} 18. Qb3 {[%clk 0:01:28]}  Rac8 {[%clk 0:01:22]} 19. Bd2 {[%clk 0:01:06]}  Rc4 {[%clk 0:00:58]} 20. Be2 {[%clk 0:01:01]}  Nxe5 {[%clk 0:00:58]} 21. Bxc4 {[%clk 0:00:34]}  Nxc4 {[%clk 0:00:52]} 22. Qd1 {[%clk 0:00:32]}  Rc8 {[%clk 0:00:46]} 23. Ra2 {[%clk 0:00:32]}  Qc6 {[%clk 0:00:44]} 24. Bc1 {[%clk 0:00:27]}  a5 {[%clk 0:00:42]} 25. Qa4 {[%clk 0:00:25]}  Qc7 {[%clk 0:00:34]} 26. h3 {[%clk 0:00:19]}  axb4 {[%clk 0:00:31]} 27. cxb4 {[%clk 0:00:20]}  h5 {[%clk 0:00:29]} 28. b5 {[%clk 0:00:19]}  e5 {[%clk 0:00:22]} 29. Qb3 {[%clk 0:00:19]}  e4 {[%clk 0:00:22]} 30. Rd1 {[%clk 0:00:18]}  Qe5 {[%clk 0:00:20]} 31. Re2 {[%clk 0:00:15]}  f5 {[%clk 0:00:18]} 32. Kh1 {[%clk 0:00:14]}  h4 {[%clk 0:00:14]} 33. f4 {[%clk 0:00:08]}  Qe6 {[%clk 0:00:13]} 34. g3 {[%clk 0:00:05]}  Kf7 {[%clk 0:00:12]} 35. gxh4 {[%clk 0:00:05]}  d4 {[%clk 0:00:13]} 36. Qg3 {[%clk 0:00:05]}  d3 {[%clk 0:00:10]} 37. Rg2 {[%clk 0:00:06]}  g6 {[%clk 0:00:06]} 38. h5 {[%clk 0:00:06]}  e3 {[%clk 0:00:06]} 39. hxg6+ {[%clk 0:00:06]}  Kg7 {[%clk 0:00:07]} 40. Re1 {[%clk 0:00:02]}  d2 {[%clk 0:00:06]} 41. Bxd2 {[%clk 0:00:03]}  Nxd2 {[%clk 0:00:06]} 42. Qh4 {[%clk 0:00:03]}  Rh8 {[%clk 0:00:05]} 43. Qg3 {[%clk 0:00:02]}  Ne4 {[%clk 0:00:05]} 44. Qf3 {[%clk 0:00:02]}  Qd5 {[%clk 0:00:03]} 45. Kh2 {[%clk 0:00:03]}  Qd6 {[%clk 0:00:02]} 46. Rd1 {[%clk 0:00:03]}  Nd2 {[%clk 0:00:02]} 47. Qe2 {[%clk 0:00:03]}  Qxf4+ {[%clk 0:00:01]} 48. Kg1 {[%clk 0:00:04]}  Qe4 {[%clk 0:00:02]} 49. Rc1 {[%clk 0:00:03]}  Nf3+ {[%clk 0:00:02]} 50. Kf1 {[%clk 0:00:03]}  Nd4 {[%clk 0:00:02]} 51. Qc4 {[%clk 0:00:04]}  e2+ {[%clk 0:00:03]} 52. Rxe2 {[%clk 0:00:04]}  Qh1+ {[%clk 0:00:02]} 53. Kf2 {[%clk 0:00:05]}  Nxe2+ {[%clk 0:00:03]} 54. Kxe2 {[%clk 0:00:05]}  Re8+ {[%clk 0:00:04]} 55. Kd3 {[%clk 0:00:05]}  Qf3+ {[%clk 0:00:04]} 56. Kc2 {[%clk 0:00:05]}  Qe4+ {[%clk 0:00:04]} 57. Kb3 {[%clk 0:00:05]}  Qxc4+ {[%clk 0:00:03]} 58. Rxc4 {[%clk 0:00:06]}  Re6 {[%clk 0:00:03]} 59. Rc6 {[%clk 0:00:05]}  Rxc6 {[%clk 0:00:03]} 60. bxc6 {[%clk 0:00:06]}  Kxg6 {[%clk 0:00:03]} 61. Kc4 {[%clk 0:00:07]}  Bc7 {[%clk 0:00:03]} 62. Kd4 {[%clk 0:00:07]}  Kg5 {[%clk 0:00:03]} 63. Kd5 {[%clk 0:00:07]}  Kh4 {[%clk 0:00:03]} 64. Ke6 {[%clk 0:00:07]}  f4 {[%clk 0:00:03]} 65. Kd7 {[%clk 0:00:08]}  f3 {[%clk 0:00:04]} 66. Kxc7 {[%clk 0:00:08]}  f2 {[%clk 0:00:05]} 67. Kb8 {[%clk 0:00:08]}  f1=Q {[%clk 0:00:05]} 68. c7 {[%clk 0:00:09]}  Qb5+ {[%clk 0:00:06]} 69. Kc8 {[%clk 0:00:09]}  Qe8+ {[%clk 0:00:05]} 70. Kb7 {[%clk 0:00:09]}  Qb5+ {[%clk 0:00:05]} 71. Ka7 {[%clk 0:00:09]}  Qc6 {[%clk 0:00:05]} 72. Kb8 {[%clk 0:00:10]}  Qb6+ {[%clk 0:00:05]} 73. Kc8 {[%clk 0:00:10]}  Kg5 {[%clk 0:00:06]} 74. Kd7 {[%clk 0:00:10]}  Qb5+ {[%clk 0:00:05]} 75. Ke7 {[%clk 0:00:11]}  Qc5+ {[%clk 0:00:05]} 76. Kd7 {[%clk 0:00:11]}  Qd5+ {[%clk 0:00:05]} 77. Ke7 {[%clk 0:00:12]}  Qc6 {[%clk 0:00:05]} 78. Kd8 {[%clk 0:00:12]}  Qd6+ {[%clk 0:00:06]} 79. Kc8 {[%clk 0:00:13]}  Kf6 {[%clk 0:00:06]} 80. h4 {[%clk 0:00:14]}  Ke7 {[%clk 0:00:05]} 81. h5 {[%clk 0:00:15]}  Qa6+ {[%clk 0:00:05]} 82. Kb8 {[%clk 0:00:15]}  Qb6+ {[%clk 0:00:05]} 83. Ka8 {[%clk 0:00:14]}  Kd7 {[%clk 0:00:04]} 84. c8=Q+ {[%clk 0:00:12]}  Kxc8 {[%clk 0:00:05]} 0-1


[Site "https://www.chess.com"]

[Event "Titled Tuesday Blitz October 31 Early 2023"]
[White "Kleiman, Jake"]
[Black "Kamsky, Gata"]
[WhiteFideId "2020041"]
[BlackFideId "2000024"]
[WhiteElo "2684"]
[BlackElo "2820"]
[Result "0-1"]
[Round "7"]
[TimeControl "180+1"]
[Date "2023.10.31"]
[WhiteClock "0:00:00"]
[BlackClock "0:00:36"]
[Board "21"]

1. e4 {[%clk 0:03:00]}  c5 {[%clk 0:02:54]} 2. c3 {[%clk 0:03:00]}  Nf6 {[%clk 0:02:53]} 3. e5 {[%clk 0:03:01]}  Nd5 {[%clk 0:02:53]} 4. Bc4 {[%clk 0:03:02]}  Nb6 {[%clk 0:02:52]} 5. Bb3 {[%clk 0:03:02]}  d5 {[%clk 0:02:51]} 6. exd6 {[%clk 0:03:02]}  Qxd6 {[%clk 0:02:51]} 7. Nf3 {[%clk 0:03:03]}  Be6 {[%clk 0:02:50]} 8. O-O {[%clk 0:03:02]}  Nc6 {[%clk 0:02:51]} 9. Bxe6 {[%clk 0:03:01]}  Qxe6 {[%clk 0:02:50]} 10. a4 {[%clk 0:03:02]}  a6 {[%clk 0:02:45]} 11. d4 {[%clk 0:02:50]}  cxd4 {[%clk 0:02:37]} 12. Nxd4 {[%clk 0:02:49]}  Nxd4 {[%clk 0:02:37]} 13. Qxd4 {[%clk 0:02:49]}  Rd8 {[%clk 0:02:37]} 14. Qh4 {[%clk 0:02:45]}  h5 {[%clk 0:02:36]} 15. Bg5 {[%clk 0:02:26]}  Qg4 {[%clk 0:02:25]} 16. Re1 {[%clk 0:01:56]}  Qxh4 {[%clk 0:02:22]} 17. Bxh4 {[%clk 0:01:57]}  f6 {[%clk 0:02:20]} 18. a5 {[%clk 0:01:37]}  Nd5 {[%clk 0:02:07]} 19. f3 {[%clk 0:01:26]}  e5 {[%clk 0:02:05]} 20. Bf2 {[%clk 0:01:22]}  Nf4 {[%clk 0:01:54]} 21. Be3 {[%clk 0:01:04]}  Nd3 {[%clk 0:01:49]} 22. Re2 {[%clk 0:01:04]}  Kd7 {[%clk 0:01:41]} 23. Nd2 {[%clk 0:00:59]}  Kc6 {[%clk 0:01:35]} 24. Nb3 {[%clk 0:00:49]}  f5 {[%clk 0:01:30]} 25. Bb6 {[%clk 0:00:47]}  Rd5 {[%clk 0:01:27]} 26. Rd1 {[%clk 0:00:39]}  Nf4 {[%clk 0:01:24]} 27. Red2 {[%clk 0:00:37]}  Be7 {[%clk 0:01:18]} 28. g3 {[%clk 0:00:36]}  Rxd2 {[%clk 0:01:16]} 29. Rxd2 {[%clk 0:00:36]}  Nd5 {[%clk 0:01:16]} 30. Bf2 {[%clk 0:00:36]}  Rd8 {[%clk 0:01:08]} 31. c4 {[%clk 0:00:34]}  Nb4 {[%clk 0:01:05]} 32. Rxd8 {[%clk 0:00:31]}  Bxd8 {[%clk 0:01:05]} 33. Be1 {[%clk 0:00:31]}  Nd3 {[%clk 0:01:01]} 34. Bc3 {[%clk 0:00:30]}  g5 {[%clk 0:00:53]} 35. Kf1 {[%clk 0:00:30]}  g4 {[%clk 0:00:52]} 36. Ke2 {[%clk 0:00:29]}  Nc5 {[%clk 0:00:53]} 37. Nxc5 {[%clk 0:00:24]}  Kxc5 {[%clk 0:00:53]} 38. fxg4 {[%clk 0:00:21]}  hxg4 {[%clk 0:00:51]} 39. b3 {[%clk 0:00:16]}  e4 {[%clk 0:00:51]} 40. Kd2 {[%clk 0:00:12]}  Bg5+ {[%clk 0:00:47]} 41. Ke2 {[%clk 0:00:12]}  Bc1 {[%clk 0:00:46]} 42. Kf2 {[%clk 0:00:12]}  Ba3 {[%clk 0:00:45]} 43. Ke3 {[%clk 0:00:10]}  Bb4 {[%clk 0:00:45]} 44. Be5 {[%clk 0:00:07]}  Bxa5 {[%clk 0:00:41]} 45. Kf4 {[%clk 0:00:07]}  Bd2+ {[%clk 0:00:41]} 46. Kxf5 {[%clk 0:00:07]}  e3 {[%clk 0:00:41]} 47. Bf4 {[%clk 0:00:07]}  Bc1 {[%clk 0:00:37]} 48. Be5 {[%clk 0:00:00]}  Kb4 {[%clk 0:00:36]} 0-1


[Site "https://www.chess.com"]

[Event "Titled Tuesday Blitz October 31 Early 2023"]
[White "Danielyan, Vahe"]
[Black "Shapiro, Viktor"]
[WhiteFideId "13304828"]
[BlackFideId "4175700"]
[WhiteElo "2755"]
[BlackElo "2526"]
[Result "1-0"]
[Round "7"]
[TimeControl "180+1"]
[Date "2023.10.31"]
[WhiteClock "0:00:18"]
[BlackClock "0:00:12"]
[Board "22"]

1. e4 {[%clk 0:03:00]}  Nf6 {[%clk 0:02:55]} 2. e5 {[%clk 0:02:59]}  Nd5 {[%clk 0:02:55]} 3. c4 {[%clk 0:02:59]}  Nb6 {[%clk 0:02:56]} 4. d4 {[%clk 0:03:00]}  d6 {[%clk 0:02:56]} 5. exd6 {[%clk 0:03:00]}  cxd6 {[%clk 0:02:57]} 6. Nc3 {[%clk 0:03:00]}  g6 {[%clk 0:02:57]} 7. Be3 {[%clk 0:03:00]}  Bg7 {[%clk 0:02:58]} 8. Rc1 {[%clk 0:03:00]}  O-O {[%clk 0:02:58]} 9. b3 {[%clk 0:03:01]}  f5 {[%clk 0:02:59]} 10. d5 {[%clk 0:02:57]}  e5 {[%clk 0:02:57]} 11. dxe6 {[%clk 0:02:57]}  Nc6 {[%clk 0:02:57]} 12. Nf3 {[%clk 0:02:55]}  f4 {[%clk 0:02:55]} 13. Bd2 {[%clk 0:02:50]}  Bxe6 {[%clk 0:02:55]} 14. Be2 {[%clk 0:02:50]}  d5 {[%clk 0:02:53]} 15. c5 {[%clk 0:02:36]}  Nd7 {[%clk 0:02:53]} 16. Nb5 {[%clk 0:02:35]}  Qe7 {[%clk 0:02:38]} 17. Nc7 {[%clk 0:02:07]}  Bg4 {[%clk 0:02:36]} 18. Nxd5 {[%clk 0:02:00]}  Qf7 {[%clk 0:02:29]} 19. O-O {[%clk 0:01:59]}  Rad8 {[%clk 0:02:24]} 20. Nxf4 {[%clk 0:01:58]}  Bxf3 {[%clk 0:02:05]} 21. Bxf3 {[%clk 0:01:59]}  Nde5 {[%clk 0:02:03]} 22. Bxc6 {[%clk 0:01:28]}  bxc6 {[%clk 0:01:52]} 23. Qe2 {[%clk 0:01:23]}  Rxd2 {[%clk 0:01:44]} 24. Qxd2 {[%clk 0:01:24]}  Bh6 {[%clk 0:01:44]} 25. Rce1 {[%clk 0:01:16]}  Bxf4 {[%clk 0:01:44]} 26. Qc3 {[%clk 0:01:12]}  Qd5 {[%clk 0:01:18]} 27. Rd1 {[%clk 0:01:04]}  Qf7 {[%clk 0:01:16]} 28. g3 {[%clk 0:00:59]}  Qf5 {[%clk 0:01:09]} 29. gxf4 {[%clk 0:00:56]}  Qxf4 {[%clk 0:01:10]} 30. Qg3 {[%clk 0:00:53]}  Qe4 {[%clk 0:01:08]} 31. f4 {[%clk 0:00:46]}  Nf7 {[%clk 0:00:52]} 32. Qf3 {[%clk 0:00:46]}  Qf5 {[%clk 0:00:49]} 33. Qxc6 {[%clk 0:00:45]}  Rc8 {[%clk 0:00:44]} 34. Qd5 {[%clk 0:00:44]}  Qg4+ {[%clk 0:00:44]} 35. Qg2 {[%clk 0:00:42]}  Qf5 {[%clk 0:00:41]} 36. Rd5 {[%clk 0:00:42]}  Qf6 {[%clk 0:00:38]} 37. f5 {[%clk 0:00:41]}  g5 {[%clk 0:00:38]} 38. Rfd1 {[%clk 0:00:39]}  h5 {[%clk 0:00:33]} 39. Qe4 {[%clk 0:00:38]}  g4 {[%clk 0:00:29]} 40. Qe6 {[%clk 0:00:37]}  Rc6 {[%clk 0:00:26]} 41. Rd6 {[%clk 0:00:29]}  Rxd6 {[%clk 0:00:21]} 42. cxd6 {[%clk 0:00:28]}  Qc3 {[%clk 0:00:15]} 43. d7 {[%clk 0:00:27]}  Qc5+ {[%clk 0:00:15]} 44. Kh1 {[%clk 0:00:20]}  Kg7 {[%clk 0:00:12]} 45. Qg6+ {[%clk 0:00:18]} 1-0


[Site "https://www.chess.com"]

[Event "Titled Tuesday Blitz October 31 Early 2023"]
[White "Nagare Kaivalya Sandip"]
[Black "Martinez Alcantara, Jose Eduardo"]
[WhiteFideId "25957929"]
[BlackFideId "3805662"]
[WhiteElo "2702"]
[BlackElo "3121"]
[Result "0-1"]
[Round "7"]
[TimeControl "180+1"]
[Date "2023.10.31"]
[WhiteClock "0:00:06"]
[BlackClock "0:00:52"]
[Board "24"]

1. e4 {[%clk 0:02:59]}  c5 {[%clk 0:03:00]} 2. Nf3 {[%clk 0:03:00]}  d6 {[%clk 0:03:00]} 3. d4 {[%clk 0:03:00]}  cxd4 {[%clk 0:03:01]} 4. Nxd4 {[%clk 0:03:01]}  a6 {[%clk 0:03:02]} 5. Nc3 {[%clk 0:03:02]}  e6 {[%clk 0:03:02]} 6. Be3 {[%clk 0:03:02]}  b5 {[%clk 0:03:03]} 7. a3 {[%clk 0:03:00]}  Nf6 {[%clk 0:03:03]} 8. Bd3 {[%clk 0:03:01]}  Bb7 {[%clk 0:03:03]} 9. O-O {[%clk 0:03:01]}  Nbd7 {[%clk 0:03:03]} 10. f4 {[%clk 0:02:59]}  Nc5 {[%clk 0:03:03]} 11. Qf3 {[%clk 0:02:59]}  Be7 {[%clk 0:03:03]} 12. Rae1 {[%clk 0:02:57]}  Rc8 {[%clk 0:03:03]} 13. Nb3 {[%clk 0:02:46]}  Nxd3 {[%clk 0:03:00]} 14. cxd3 {[%clk 0:02:46]}  O-O {[%clk 0:03:01]} 15. Kh1 {[%clk 0:02:40]}  Qd7 {[%clk 0:02:57]} 16. Qh3 {[%clk 0:02:36]}  a5 {[%clk 0:02:52]} 17. Nxa5 {[%clk 0:02:35]}  Ba8 {[%clk 0:02:50]} 18. Nb3 {[%clk 0:02:33]}  Rb8 {[%clk 0:02:50]} 19. Na2 {[%clk 0:02:28]}  g6 {[%clk 0:02:51]} 20. Nb4 {[%clk 0:02:27]}  Rbc8 {[%clk 0:02:51]} 21. Rc1 {[%clk 0:02:26]}  Nh5 {[%clk 0:02:47]} 22. g4 {[%clk 0:01:56]}  Ng7 {[%clk 0:02:45]} 23. d4 {[%clk 0:01:48]}  Bxe4+ {[%clk 0:02:45]} 24. Kg1 {[%clk 0:01:47]}  h5 {[%clk 0:02:43]} 25. gxh5 {[%clk 0:01:47]}  Nxh5 {[%clk 0:02:43]} 26. d5 {[%clk 0:01:42]}  Bf5 {[%clk 0:02:40]} 27. Qf3 {[%clk 0:01:34]}  Nf6 {[%clk 0:02:39]} 28. Nd4 {[%clk 0:01:30]}  Be4 {[%clk 0:02:35]} 29. dxe6 {[%clk 0:01:30]}  fxe6 {[%clk 0:02:36]} 30. Qh3 {[%clk 0:01:29]}  Kf7 {[%clk 0:02:36]} 31. Nf3 {[%clk 0:01:16]}  Bxf3 {[%clk 0:02:32]} 32. Qxf3 {[%clk 0:01:17]}  Rc4 {[%clk 0:02:31]} 33. Nc6 {[%clk 0:01:06]}  Nd5 {[%clk 0:02:04]} 34. Rxc4 {[%clk 0:00:52]}  bxc4 {[%clk 0:02:05]} 35. Nxe7 {[%clk 0:00:48]}  Nxe7 {[%clk 0:02:05]} 36. Qh3 {[%clk 0:00:40]}  Qb5 {[%clk 0:02:01]} 37. Qh7+ {[%clk 0:00:37]}  Ke8 {[%clk 0:02:01]} 38. Rd1 {[%clk 0:00:30]}  Qc6 {[%clk 0:02:00]} 39. Qh3 {[%clk 0:00:27]}  Nf5 {[%clk 0:01:59]} 40. Bf2 {[%clk 0:00:26]}  Qe4 {[%clk 0:01:58]} 41. Qg4 {[%clk 0:00:22]}  Kd7 {[%clk 0:01:42]} 42. Re1 {[%clk 0:00:19]}  Qd5 {[%clk 0:01:34]} 43. Qxg6 {[%clk 0:00:19]}  Ne7 {[%clk 0:01:34]} 44. Qh7 {[%clk 0:00:17]}  Rg8+ {[%clk 0:01:34]} 45. Bg3 {[%clk 0:00:17]}  Qd4+ {[%clk 0:01:29]} 46. Kg2 {[%clk 0:00:15]}  Qxb2+ {[%clk 0:01:28]} 47. Kf1 {[%clk 0:00:15]}  Qxa3 {[%clk 0:01:22]} 48. Qe4 {[%clk 0:00:14]}  Rg6 {[%clk 0:01:10]} 49. f5 {[%clk 0:00:14]}  Rf6 {[%clk 0:01:07]} 50. Bh4 {[%clk 0:00:14]}  Rxf5+ {[%clk 0:01:04]} 51. Kg1 {[%clk 0:00:14]}  Qa7+ {[%clk 0:01:00]} 52. Kg2 {[%clk 0:00:13]}  Re5 {[%clk 0:01:00]} 53. Qh7 {[%clk 0:00:12]}  Qa2+ {[%clk 0:00:53]} 54. Kh3 {[%clk 0:00:12]}  Qb3+ {[%clk 0:00:47]} 55. Kg4 {[%clk 0:00:12]}  Rxe1 {[%clk 0:00:47]} 56. Qxe7+ {[%clk 0:00:11]}  Kc6 {[%clk 0:00:48]} 57. Qe8+ {[%clk 0:00:09]}  Kd5 {[%clk 0:00:48]} 58. Qa8+ {[%clk 0:00:09]}  Kd4 {[%clk 0:00:49]} 59. Qa7+ {[%clk 0:00:07]}  Kd3 {[%clk 0:00:49]} 60. Bxe1 {[%clk 0:00:06]}  Qd1+ {[%clk 0:00:50]} 61. Kf4 {[%clk 0:00:05]}  Qxe1 {[%clk 0:00:51]} 62. Qa3+ {[%clk 0:00:06]}  Qc3 {[%clk 0:00:48]} 63. Qxd6+ {[%clk 0:00:05]}  Qd4+ {[%clk 0:00:49]} 64. Qxd4+ {[%clk 0:00:05]}  Kxd4 {[%clk 0:00:50]} 65. h4 {[%clk 0:00:06]}  c3 {[%clk 0:00:51]} 66. h5 {[%clk 0:00:07]}  c2 {[%clk 0:00:51]} 67. h6 {[%clk 0:00:06]}  c1=Q+ {[%clk 0:00:52]} 0-1


[Site "https://www.chess.com"]

[Event "Titled Tuesday Blitz October 31 Early 2023"]
[White "Paravyan, David"]
[Black "Ovetchkin, Roman"]
[WhiteFideId "4194985"]
[BlackFideId "4119991"]
[WhiteElo "3066"]
[BlackElo "2694"]
[Result "1-0"]
[Round "7"]
[TimeControl "180+1"]
[Date "2023.10.31"]
[WhiteClock "0:01:15"]
[BlackClock "0:00:05"]
[Board "25"]

1. e4 {[%clk 0:02:42]}  c6 {[%clk 0:02:57]} 2. d4 {[%clk 0:02:42]}  d5 {[%clk 0:02:58]} 3. Nd2 {[%clk 0:02:42]}  dxe4 {[%clk 0:02:58]} 4. Nxe4 {[%clk 0:02:43]}  Nf6 {[%clk 0:02:58]} 5. Nxf6+ {[%clk 0:02:43]}  exf6 {[%clk 0:02:59]} 6. c3 {[%clk 0:02:44]}  Bd6 {[%clk 0:02:58]} 7. Bd3 {[%clk 0:02:44]}  O-O {[%clk 0:02:58]} 8. Qc2 {[%clk 0:02:44]}  Re8+ {[%clk 0:02:58]} 9. Ne2 {[%clk 0:02:44]}  f5 {[%clk 0:02:58]} 10. Bxf5 {[%clk 0:02:41]}  Bxf5 {[%clk 0:02:57]} 11. Qxf5 {[%clk 0:02:40]}  Nd7 {[%clk 0:02:57]} 12. Be3 {[%clk 0:02:39]}  Nf6 {[%clk 0:02:39]} 13. O-O {[%clk 0:02:35]}  Nd5 {[%clk 0:02:32]} 14. Ng3 {[%clk 0:02:31]}  g6 {[%clk 0:02:23]} 15. Qf3 {[%clk 0:02:25]}  Qh4 {[%clk 0:01:35]} 16. Rae1 {[%clk 0:02:23]}  Re6 {[%clk 0:01:26]} 17. Bd2 {[%clk 0:02:22]}  Rae8 {[%clk 0:01:26]} 18. Rxe6 {[%clk 0:02:21]}  Rxe6 {[%clk 0:01:26]} 19. h3 {[%clk 0:02:21]}  b5 {[%clk 0:01:12]} 20. Qg4 {[%clk 0:02:10]}  Qxg4 {[%clk 0:01:10]} 21. hxg4 {[%clk 0:02:11]}  Bxg3 {[%clk 0:01:09]} 22. fxg3 {[%clk 0:02:12]}  Re2 {[%clk 0:01:06]} 23. Rf2 {[%clk 0:02:12]}  Rxf2 {[%clk 0:01:05]} 24. Kxf2 {[%clk 0:02:12]}  f6 {[%clk 0:01:05]} 25. Kf3 {[%clk 0:02:12]}  Kf7 {[%clk 0:01:06]} 26. b3 {[%clk 0:02:12]}  Ke6 {[%clk 0:01:06]} 27. Ke4 {[%clk 0:02:08]}  Nb6 {[%clk 0:00:54]} 28. Bf4 {[%clk 0:02:06]}  a6 {[%clk 0:00:54]} 29. a3 {[%clk 0:01:59]}  f5+ {[%clk 0:00:48]} 30. gxf5+ {[%clk 0:02:00]}  gxf5+ {[%clk 0:00:48]} 31. Kd3 {[%clk 0:02:01]}  Nd5 {[%clk 0:00:44]} 32. c4 {[%clk 0:02:00]}  Nf6 {[%clk 0:00:44]} 33. Kc3 {[%clk 0:01:58]}  a5 {[%clk 0:00:35]} 34. d5+ {[%clk 0:01:58]}  Kd7 {[%clk 0:00:33]} 35. dxc6+ {[%clk 0:01:58]}  Kxc6 {[%clk 0:00:32]} 36. cxb5+ {[%clk 0:01:59]}  Kxb5 {[%clk 0:00:33]} 37. a4+ {[%clk 0:02:00]}  Kc6 {[%clk 0:00:31]} 38. Kd4 {[%clk 0:01:57]}  Ne4 {[%clk 0:00:29]} 39. g4 {[%clk 0:01:54]}  Nc5 {[%clk 0:00:29]} 40. gxf5 {[%clk 0:01:54]}  Nxb3+ {[%clk 0:00:29]} 41. Ke5 {[%clk 0:01:54]}  Nc5 {[%clk 0:00:24]} 42. f6 {[%clk 0:01:54]}  Kd7 {[%clk 0:00:24]} 43. Bg5 {[%clk 0:01:25]}  Ke8 {[%clk 0:00:24]} 44. Be3 {[%clk 0:01:25]}  Nb7 {[%clk 0:00:20]} 45. Bb6 {[%clk 0:01:18]}  Kf7 {[%clk 0:00:19]} 46. g3 {[%clk 0:01:19]}  h5 {[%clk 0:00:05]} 47. Kd5 {[%clk 0:01:15]} 1-0


[Site "https://www.chess.com"]

[Event "Titled Tuesday Blitz October 31 Early 2023"]
[White "Makarian, Rudik"]
[Black "Mendez Fortes, Eduardo Jesus"]
[WhiteFideId "44105681"]
[BlackFideId "3502376"]
[WhiteElo "3029"]
[BlackElo "2681"]
[Result "1-0"]
[Round "7"]
[TimeControl "180+1"]
[Date "2023.10.31"]
[WhiteClock "0:01:40"]
[BlackClock "0:00:31"]
[Board "27"]

1. d4 {[%clk 0:03:00]}  Nf6 {[%clk 0:02:59]} 2. c4 {[%clk 0:03:00]}  e6 {[%clk 0:02:58]} 3. Nf3 {[%clk 0:03:00]}  d5 {[%clk 0:02:58]} 4. Nc3 {[%clk 0:03:00]}  Bb4 {[%clk 0:02:58]} 5. Qa4+ {[%clk 0:03:00]}  Nc6 {[%clk 0:02:58]} 6. Bd2 {[%clk 0:03:00]}  O-O {[%clk 0:02:57]} 7. a3 {[%clk 0:02:59]}  Bxc3 {[%clk 0:02:47]} 8. Bxc3 {[%clk 0:03:00]}  Ne7 {[%clk 0:02:44]} 9. e3 {[%clk 0:02:59]}  b6 {[%clk 0:02:44]} 10. Bd3 {[%clk 0:02:49]}  a5 {[%clk 0:02:42]} 11. Qc2 {[%clk 0:02:45]}  Ba6 {[%clk 0:02:38]} 12. cxd5 {[%clk 0:02:34]}  Bxd3 {[%clk 0:02:35]} 13. Qxd3 {[%clk 0:02:34]}  exd5 {[%clk 0:02:34]} 14. O-O {[%clk 0:02:35]}  Nc8 {[%clk 0:02:32]} 15. b4 {[%clk 0:02:31]}  Nd6 {[%clk 0:02:22]} 16. bxa5 {[%clk 0:02:30]}  bxa5 {[%clk 0:02:21]} 17. a4 {[%clk 0:02:30]}  Nc4 {[%clk 0:02:18]} 18. Rfb1 {[%clk 0:02:29]}  Ne4 {[%clk 0:02:14]} 19. Nd2 {[%clk 0:02:29]}  Ncxd2 {[%clk 0:02:10]} 20. Bxd2 {[%clk 0:02:28]}  Qd6 {[%clk 0:02:09]} 21. Be1 {[%clk 0:02:26]}  Qd7 {[%clk 0:02:05]} 22. Qb5 {[%clk 0:02:21]}  c6 {[%clk 0:01:57]} 23. Qb7 {[%clk 0:02:20]}  Qd6 {[%clk 0:01:57]} 24. Rc1 {[%clk 0:02:19]}  Rfc8 {[%clk 0:01:29]} 25. f3 {[%clk 0:02:13]}  Nf6 {[%clk 0:01:18]} 26. Bg3 {[%clk 0:02:10]}  Qe6 {[%clk 0:01:18]} 27. Ra3 {[%clk 0:02:05]}  Nh5 {[%clk 0:01:14]} 28. Be5 {[%clk 0:02:00]}  f6 {[%clk 0:00:58]} 29. Bc7 {[%clk 0:01:59]}  Qd7 {[%clk 0:00:48]} 30. Qxc6 {[%clk 0:01:53]}  Qe7 {[%clk 0:00:46]} 31. Rac3 {[%clk 0:01:50]}  Ra7 {[%clk 0:00:46]} 32. Qxd5+ {[%clk 0:01:49]}  Kh8 {[%clk 0:00:31]} 33. Bb6 {[%clk 0:01:40]} 1-0


[Site "https://www.chess.com"]